Workbook

Sheet المقسطون
C2: ملف العميــل | D2: 100 | E2: الاســم | F2: =VLOOKUP(D2,B27:K62,2,0) -> عميل رقم 100 | J2: تاريخ اليوم : | K2: =TODAY() -> 2022-10-29
C4: تقيـيم العميل
A5: نظـام الخصــم | I5: حساب نســبة التقسـيط
E6: إسم البضاعة :
C7: السعر النقدي | D7: =VLOOKUP(D2,B27:K62,4,0) -> 35000 | I7: السعر | J7: الاشهر
C8: قيمة العقد بالتقسيط | D8: =VLOOKUP(D2,B27:K62,5,0) -> 50750 | E8: موديلها : | I8: 35000 | J8: 40
C9: المقدم | D9: 0 | I9: الزيادة | J9: =SUM(I8*(J8%+5%)) -> 15750
C10: القسط الشهري | D10: =VLOOKUP(D2,B27:K62,6,0) -> 1269 | I10: بعد الزيادة | J10: =SUM(I8+J9) -> 50750
C11: ماتم سداده من المبلغ | D11: =IF($D$12>$K$2,0,IF($D$13<$K$2,$D$8,(SUM(DATEDIF($D$12,$K$2,"Y")*12)+(DATEDIF($D$12,$K$2,"ym"))+(IF(DATEDIF($D$12,$K$2,"md")<>0,1,0)))*D10)) -> 50750 | I11: القسط الشهري | J11: =SUM(J10/J8) -> 1268.75
C12: بداية التسديد | D12: =VLOOKUP(D2,B27:K62,7,0) -> 2008-10-25 | I12: التاريخ الميلادي والتاريخ الهجري
C13: نهاية التسديد | D13: =VLOOKUP(D2,B27:K62,8,0) -> 2011-12-20 | F13: المدة | G13: =(D8-D9)/D10 -> 39.99211978
C14: الأشهر المسددة | D14: =(D11/D10) -> 39.99211978 | F14: الربح كامل | G14: =D8-D7 -> 15750 | I14: ملف العميــل | J14: الاســم | L14: مدة العقـد | M14: من | N14: الى
C15: الأشهر المتبقية | D15: =D17/D10 -> 0 | F15: الربح الشهري | G15: =G14/G13 -> 393.8275862 | I15: =D2 -> 100 | J15: =F2 -> عميل رقم 100 | L15: =G13 -> 39.99211978 | M15: =D12 -> 2008-10-25 | N15: =D13 -> 2011-12-20
F16: النسبة | G16: =(G14/(D7-D9))*100 -> 45 | I16: حالة الاشهر وقيمة العقد | M16: =TEXT(M15,"[$-,197000]B2yyyy/mm/dd;@") -> 2008/10/25 | N16: =EDATE(M16,L15) -> 2012-01-25
C17: الباقي من المبلغ | D17: =D8-D11 -> 0 | F17: النسبة السنوية | G17: =(G16/G13)*12 -> 13.5026601
C18: الخصم | D18: =((D17*G17%)*(D15/12))/(1+((G17%)*(D15/12))) -> 0 | F18: النسبة الشهرية | G18: =G16/G13 -> 1.125221675
C19: المطلوب | D19: =D17-D18 -> 0
M20: =VLOOKUP(D5,B28:L63,11,0) -> 
N22: =VLOOKUP(E7,C30:M65,11,0) -> 
N23: =VLOOKUP(E8,C31:M66,11,0) -> 
C24: ملاحظة : اذا تم السداد قبل الموعد المحدد يتم إضافة 1000 ( الف ريال )
O25: رقم الصف | P25: رقم العامود
B26: رقم الملف | C26: الاسم | D26: مدة القرض ( بالشهر ) | E26: السعر النقدي | F26: القيمة بعد التقسيط | G26: القسط | H26: من | I26: الى | J26: الربــح | K26: الدخل الشهري | L26: حـالة العقـد | M26: سداد مبكر بتاريخ | N26: المبلغ المسدد | O26: 4 | P26: 4
B27: 100 | C27: عميل رقم 100 | D27: 40 | E27: 35000 | F27: 50750 | G27: 1269 | H27: 2008-10-25 | I27: =MID(TEXT(H27,"b2dd.mm.yyyy"),1,2)-MID(TEXT(H27+ROUND((D27-1)*354.367056/12,0),"b2dd.mm.yyyy"),1,2)+H27+ROUND((D27-1)*354.367056/12,0) -> 2011-12-20 | J27: =SUM(E27*(D27%+5%)) -> 15750 | K27: 0 | L27: =IFERROR(IF(AND(M27<>"",M27<I27),"سداد مبكر",IF(TODAY()=I27,"العقد انتهى اليوم",IF(TODAY()>I27,"العقـد منتهى",IF(TODAY()<H27,"لم يتم تداولة","العقـد سارى")))),"") -> العقـد منتهى
E63: =SUM(E27:E62) -> 35000 | F63: =SUM(F27:F62) -> 50750 | J63: =SUM(J27:J62) -> 15750 | K63: =SUM(K27:K62) -> 0

Sheet تسديد عميل
G5: تاريخ اليوم : | H5: =TODAY() -> 2022-10-29
B6: ملف العميــل | C6: 100 | D6: الاســـــم | E6: =VLOOKUP(' تسديد عميل'!C6,المقسطون!B26:I61,2,0) -> عميل رقم 100
D8: مدة القرض (بالاشهر) | E8: =VLOOKUP(C6,المقسطون!$B$26:$H$61,3,0) -> 40 | G8: القسـط الشهري | H8: =VLOOKUP(C6,المقسطون!$B$26:$H$61,6,0) -> 1269
D9: تاريـخ بدايـة القـرض | E9: =VLOOKUP(C6,المقسطون!$B$26:$H$61,7,0) -> 2008-10-25 | G9: الســعر النقـدي | H9: =VLOOKUP(C6,المقسطون!$B$26:$H$61,4,0) -> 35000
D10: تاريـخ نهايـة القـرض | E10: =TEXT(E9+((E8-1)*29.5),"B2yyyy/mm/")&TEXT(E9,"B2dd") -> 1433/01/25 | G10: الربــــــــــــح | H10: =VLOOKUP(C6,المقسطون!B26:K61,9,0) -> 15750
D11: حــــــالة العقـــــــد | E11: =VLOOKUP(C6,المقسطون!B27:N62,11,0) -> العقـد منتهى | G11: قيمــة القــرض | H11: =VLOOKUP(C6,المقسطون!B26:I61,5,0) -> 50750
D12: نسبة السداد بـ % | E12: =H12/H11 -> 1 | G12: المبالغ المســددة | H12: =SUM(H19:H58) -> 50750
G13: المبالغ المتبيقية | H13: =SUM(H11-H12) -> 0
G14: الأشهر المسددة | H14: =(H12/H8) -> 39.99211978
G15: الأشهر المتبقية | H15: =H13/H8 -> 0
E16: حركة تسديد عميل
D18: الشهــر | E18: تاريخ التحصيل | F18: رصيد القرض | G18: القسط | H18: التسديدات
D19: =IF(ROW()-18>$E$8,"",ROW()-18) -> 1 | E19: =IF(D19="","",TEXT($E$9+((D19-1)*29.5),"B2yyyy/mm/")&TEXT($E$9,"B2dd")) -> 1429/10/25 | F19: =H11 -> 50750 | G19: =IF(E19="","",IF($H$11="","",$H$11/$E$8)) -> 1268.75 | H19: =IF(D19="","",IF(TODAY()>=h2g(E19),G19,"")) -> 1268.75
D20: 2 | E20: =IF(D20="","",TEXT($E$9+((D20-1)*29.5),"B2yyyy/mm/")&TEXT($E$9,"B2dd")) -> 1429/11/25 | F20: =IF(E20="","",F19-G20) -> 49481.25 | G20: 1268.75 | H20: =IF(D20="","",IF(TODAY()>=h2g(E20),G20,"")) -> 1268.75 | J20: اريد الاثنى عشر أولى بدل القسط 1269 يكون 1000
D21: 3 | E21: 1429/12/25 | F21: =IF(E21="","",F20-G21) -> 48212.5 | G21: 1268.75 | H21: =IF(D21="","",IF(TODAY()>=h2g(E21),G21,"")) -> 1268.75 | J21: ومن شهر13 الى شهر22 يكون القسط ١٥٣٨ بمعنى القسط 1269+269
D22: 4 | E22: =IF(D22="","",TEXT($E$9+((D22-1)*29.5),"B2yyyy/mm/")&TEXT($E$9,"B2dd")) -> 1430/01/25 | F22: 46943.75 | G22: 1268.75 | H22: =IF(D22="","",IF(TODAY()>=h2g(E22),G22,"")) -> 1268.75 | J22: ومن القسط 23 الى نهاية الأقساط يكون القسط 1296
D23: 5 | E23: 1430/02/25 | F23: 45675 | G23: 1268.75 | H23: =IF(D23="","",IF(TODAY()>=h2g(E23),G23,"")) -> 1268.75
D24: 6 | E24: 1430/03/25 | F24: 44406.25 | G24: 1268.75 | H24: =IF(D24="","",IF(TODAY()>=h2g(E24),G24,"")) -> 1268.75
D25: 7 | E25: 1430/04/25 | F25: 43137.5 | G25: 1268.75 | H25: =IF(D25="","",IF(TODAY()>=h2g(E25),G25,"")) -> 1268.75
D26: 8 | E26: 1430/05/25 | F26: 41868.75 | G26: 1268.75 | H26: =IF(D26="","",IF(TODAY()>=h2g(E26),G26,"")) -> 1268.75
D27: 9 | E27: 1430/06/25 | F27: 40600 | G27: 1268.75 | H27: =IF(D27="","",IF(TODAY()>=h2g(E27),G27,"")) -> 1268.75
D28: 10 | E28: 1430/07/25 | F28: 39331.25 | G28: 1268.75 | H28: =IF(D28="","",IF(TODAY()>=h2g(E28),G28,"")) -> 1268.75
D29: 11 | E29: 1430/08/25 | F29: 38062.5 | G29: 1268.75 | H29: =IF(D29="","",IF(TODAY()>=h2g(E29),G29,"")) -> 1268.75
D30: 12 | E30: 1430/09/25 | F30: 36793.75 | G30: 1268.75 | H30: =IF(D30="","",IF(TODAY()>=h2g(E30),G30,"")) -> 1268.75
D31: 13 | E31: 1430/10/25 | F31: 35525 | G31: 1268.75 | H31: =IF(D31="","",IF(TODAY()>=h2g(E31),G31,"")) -> 1268.75
D32: 14 | E32: 1430/11/25 | F32: 34256.25 | G32: 1268.75 | H32: =IF(D32="","",IF(TODAY()>=h2g(E32),G32,"")) -> 1268.75
D33: 15 | E33: 1430/12/25 | F33: 32987.5 | G33: 1268.75 | H33: =IF(D33="","",IF(TODAY()>=h2g(E33),G33,"")) -> 1268.75
D34: 16 | E34: 1431/01/25 | F34: 31718.75 | G34: 1268.75 | H34: =IF(D34="","",IF(TODAY()>=h2g(E34),G34,"")) -> 1268.75
D35: 17 | E35: 1431/02/25 | F35: 30450 | G35: 1268.75 | H35: =IF(D35="","",IF(TODAY()>=h2g(E35),G35,"")) -> 1268.75 | I35: يكون القسط ١٥٣٨
D36: 18 | E36: 1431/03/25 | F36: 29181.25 | G36: 1268.75 | H36: =IF(D36="","",IF(TODAY()>=h2g(E36),G36,"")) -> 1268.75
D37: 19 | E37: 1431/04/25 | F37: 27912.5 | G37: 1268.75 | H37: =IF(D37="","",IF(TODAY()>=h2g(E37),G37,"")) -> 1268.75
D38: 20 | E38: 1431/05/25 | F38: 26643.75 | G38: 1268.75 | H38: =IF(D38="","",IF(TODAY()>=h2g(E38),G38,"")) -> 1268.75
D39: 21 | E39: 1431/06/25 | F39: 25375 | G39: 1268.75 | H39: =IF(D39="","",IF(TODAY()>=h2g(E39),G39,"")) -> 1268.75
D40: 22 | E40: 1431/07/25 | F40: 24106.25 | G40: 1268.75 | H40: =IF(D40="","",IF(TODAY()>=h2g(E40),G40,"")) -> 1268.75
D41: 23 | E41: 1431/08/25 | F41: 22837.5 | G41: 1268.75 | H41: =IF(D41="","",IF(TODAY()>=h2g(E41),G41,"")) -> 1268.75
D42: 24 | E42: 1431/09/25 | F42: 21568.75 | G42: 1268.75 | H42: =IF(D42="","",IF(TODAY()>=h2g(E42),G42,"")) -> 1268.75
D43: 25 | E43: 1431/10/25 | F43: 20300 | G43: 1268.75 | H43: =IF(D43="","",IF(TODAY()>=h2g(E43),G43,"")) -> 1268.75
D44: 26 | E44: 1431/11/25 | F44: 19031.25 | G44: 1268.75 | H44: =IF(D44="","",IF(TODAY()>=h2g(E44),G44,"")) -> 1268.75
D45: 27 | E45: 1431/12/25 | F45: 17762.5 | G45: 1268.75 | H45: =IF(D45="","",IF(TODAY()>=h2g(E45),G45,"")) -> 1268.75
D46: 28 | E46: 1432/01/25 | F46: 16493.75 | G46: 1268.75 | H46: =IF(D46="","",IF(TODAY()>=h2g(E46),G46,"")) -> 1268.75
D47: 29 | E47: 1432/02/25 | F47: 15225 | G47: 1268.75 | H47: =IF(D47="","",IF(TODAY()>=h2g(E47),G47,"")) -> 1268.75
D48: 30 | E48: 1432/03/25 | F48: 13956.25 | G48: 1268.75 | H48: =IF(D48="","",IF(TODAY()>=h2g(E48),G48,"")) -> 1268.75
D49: 31 | E49: 1432/04/25 | F49: 12687.5 | G49: 1268.75 | H49: =IF(D49="","",IF(TODAY()>=h2g(E49),G49,"")) -> 1268.75 | I49: يكون القسط 1269
D50: 32 | E50: 1432/05/25 | F50: 11418.75 | G50: 1268.75 | H50: =IF(D50="","",IF(TODAY()>=h2g(E50),G50,"")) -> 1268.75
D51: 33 | E51: 1432/06/25 | F51: 10150 | G51: 1268.75 | H51: =IF(D51="","",IF(TODAY()>=h2g(E51),G51,"")) -> 1268.75
D52: 34 | E52: 1432/07/25 | F52: 8881.25 | G52: 1268.75 | H52: =IF(D52="","",IF(TODAY()>=h2g(E52),G52,"")) -> 1268.75
D53: 35 | E53: 1432/08/25 | F53: 7612.5 | G53: 1268.75 | H53: =IF(D53="","",IF(TODAY()>=h2g(E53),G53,"")) -> 1268.75
D54: 36 | E54: 1432/09/25 | F54: 6343.75 | G54: 1268.75 | H54: =IF(D54="","",IF(TODAY()>=h2g(E54),G54,"")) -> 1268.75
D55: 37 | E55: 1432/10/25 | F55: 5075 | G55: 1268.75 | H55: =IF(D55="","",IF(TODAY()>=h2g(E55),G55,"")) -> 1268.75
D56: 38 | E56: 1432/11/25 | F56: 3806.25 | G56: 1268.75 | H56: =IF(D56="","",IF(TODAY()>=h2g(E56),G56,"")) -> 1268.75
D57: 39 | E57: 1432/12/25 | F57: 2537.5 | G57: 1268.75 | H57: =IF(D57="","",IF(TODAY()>=h2g(E57),G57,"")) -> 1268.75
D58: 40 | E58: 1433/01/25 | F58: 1268.75 | G58: 1268.75 | H58: =IF(D58="","",IF(TODAY()>=h2g(E58),G58,"")) -> 1268.75
